lending/lending_fUSD_20240110
["ID","MTS","AMOUNT","RATE_DAILY","PERIOD"]
[311011748,1704868238475,-926.95101157,0.000274,2]
[311011749,1704868238485,-4271.0,0.000279,2]
[311011750,1704868238494,-151.87,0.00027919,2]
[311011751,1704868238503,-46778.0,0.00028,2]
[311011752,1704868238512,-434.067,0.00028028,2]
[311011753,1704868238521,-2730.298,0.00028028,2]
[311011754,1704868238530,-2431.455,0.00028028,2]
[311011755,1704868238540,-2900.0,0.00028028,2]
[311011756,1704868238549,-4200.667,0.00028028,2]
[311011757,1704868238557,-2269.0,0.00028028,2]
[311011758,1704868238566,-216.218,0.00028028,2]
[311011759,1704868238575,-19668.0,0.00028028,2]
[311011760,1704868238584,-944.0,0.00028028,2]
[311011761,1704868238593,-1860.073,0.00028028,2]
[311011762,1704868238602,-3050.981,0.00028028,2]
[311011763,1704868238610,-838.0,0.00028028,2]
[311011764,1704868238619,-1056.432,0.00028028,2]
[311011765,1704868238628,-736.471,0.00028028,2]
[311011766,1704868238637,-169.3,0.00028071,2]
[311011767,1704868238646,-151.87,0.00028617,2]
[311011768,1704868238655,-221.71,0.00028695,2]
[311011769,1704868238664,-450.0,0.00029,3]
[311011770,1704868238673,-169.3,0.00029049,2]
[311011771,1704868238683,-522.78,0.00029225,2]
[311011772,1704868238692,-151.87,0.00029315,2]
[311011773,1704868238702,-6261.07970324,0.00029568,6]
[311011774,1704868238711,-1135.265,0.00029568,2]
[311011775,1704868238720,-1027.915,0.00029568,2]
[311011776,1704868238729,-616.768,0.00029568,2]
[311011777,1704868238738,-1930.0,0.00029568,2]
[311011778,1704868238746,-239.76,0.00029568,2]
[311011779,1704868238756,-458.14,0.00029568,2]
[311011780,1704868238765,-881.0,0.00029568,2]
[311011781,1704868238774,-318.132,0.00029568,2]
[311011782,1704868238784,-579.895,0.00029568,2]
[311011783,1704868238793,-1311.312,0.00029568,2]
[311011784,1704868238801,-41991.0,0.00029568,2]
[311011785,1704868238810,-1044.30585021,0.000299,2]
[311011786,1704868238819,-1044.3058501,0.000299,2]
[311011787,1704868238828,-1044.3058501,0.000299,2]
[311011788,1704868238837,-1044.3058501,0.000299,2]
[311011789,1704868238846,-1044.3058501,0.000299,2]
[311011790,1704868238856,-1044.3058501,0.000299,2]
[311011791,1704868238865,-1044.3058501,0.000299,2]
[311011792,1704868238874,-1044.3058501,0.000299,2]
[311011793,1704868238883,-1044.3058501,0.000299,2]
[311011794,1704868238892,-1044.3058501,0.000299,2]
[311011795,1704868238901,-1044.3058501,0.000299,2]
[311011796,1704868238911,-1044.3058501,0.000299,2]
[311011797,1704868238921,-1044.3058501,0.000299,2]
[311011798,1704868238930,-1044.3058501,0.000299,2]
[311011799,1704868238939,-18989.11801624,0.0003,4]
[311011800,1704868238948,-769.76626315,0.0003,4]
[311011801,1704868238958,-155.0,0.0003,2]
[311011802,1704868238967,-19380.48430119,0.0003,4]
[311011803,1704868238977,-8121.08953409,0.0003,2]
[311011804,1704868238986,-1593.87262677,0.0003,4]
[311011805,1704868238995,-4368.60027045,0.0003,4]
[311011806,1704868239004,-151.87,0.00030013,2]
[311011807,1704868239014,-169.3,0.00030028,2]
[311011808,1704868239023,-1679.34,0.00030137,2]
[311011809,1704868239034,-154.79,0.00030137,2]
[311011810,1704868239044,-215.18,0.00030143,2]
[311011811,1704868239053,-1044.3058501,0.00030151,2]
[311011812,1704868239062,-207.0,0.00030364,12]
[311011813,1704868239071,-1044.3058501,0.00030676,2]
[311011814,1704868239081,-151.87,0.00030711,2]
[311011815,1704868239090,-221.71,0.00030959,2]
[311011816,1704868239099,-500.0,0.00031,3]
[311011817,1704868239108,-169.3,0.00031006,2]
[311011818,1704868239118,-2603.214,0.00031028,2]
[311011819,1704868239127,-2269.0,0.00031028,2]
[311011820,1704868239136,-1028.0,0.00031028,2]
[311011821,1704868239146,-1044.3058501,0.00031201,2]
[311011822,1704868239155,-154.79,0.00031233,2]
[311011823,1704868239164,-200.0,0.000315,5]
[311011824,1704868239174,-239.91,0.00031507,2]
[311011825,1704868239183,-1044.3058501,0.00031726,2]
[311011826,1704868239192,-11990.76786512,0.0003179,7]
[311011827,1704868239201,-143260.06257,0.000318,2]
[311011828,1704868239211,-169.3,0.00031985,2]
[311011829,1704868239220,-326.66607586,0.00032048,5]
[311011830,1704868239229,-1044.3058501,0.00032251,2]
[311011831,1704868239239,-5305.92824332,0.00032327,2]
[311011832,1704868239248,-154.79,0.00032329,2]
[311011833,1704868239257,-168.18,0.00032337,2]
[311011834,1704868239266,-414.53,0.00032337,2]
[311011835,1704868239275,-197.8,0.00032337,2]
[311011836,1704868239285,-150.0,0.00032337,2]
[311011837,1704868239294,-152.84,0.00032337,2]
[311011838,1704868239304,-313.99,0.00032337,2]
[311011839,1704868239316,-152.63,0.00032337,2]
[311011840,1704868239325,-344.12,0.00032337,2]
[311011841,1704868239335,-417.61,0.00032337,2]
[311011842,1704868239344,-417.61,0.00032337,2]
[311011843,1704868239355,-313.99,0.00032337,2]
[311011844,1704868239364,-150.0,0.00032337,2]
[311011845,1704868239373,-417.61,0.00032337,2]
[311011846,1704868239383,-313.99,0.00032337,2]
[311011847,1704868239393,-150.0,0.00032337,2]
[311011848,1704868239402,-417.61,0.00032337,2]
[311011849,1704868239411,-313.99,0.00032337,2]
[311011850,1704868239422,-417.61,0.00032337,2]
[311011851,1704868239431,-313.99,0.00032337,2]
[311011852,1704868239440,-339.76,0.00032337,2]
[311011853,1704868239450,-313.99,0.00032337,2]
[311011854,1704868239459,-313.99,0.00032337,2]
[311011855,1704868239468,-313.99,0.00032337,2]
[311011856,1704868239478,-165.92287658,0.000324,4]
[311011857,1704868239487,-174.70904684,0.000324,2]
[311011858,1704868239496,-405.52382204,0.00032433,20]
[311011859,1704868239505,-176.57139998,0.00032433,2]
[311011860,1704868239514,-232.02122687,0.00032433,2]
[311011861,1704868239523,-327.41792075,0.00032433,2]
[311011862,1704868239533,-1996.99074684,0.00032433,2]
[311011863,1704868239542,-201.80902973,0.0003245,2]
[311011864,1704868239552,-242.4372727,0.0003245,2]
[311011865,1704868239561,-522.78,0.00032473,2]
[311011866,1704868239570,-79588.9236498,0.0003249,3]
[311011867,1704868239867,-360.0,0.000325,5]
[311011868,1704868239877,-917639.8108929,0.000325,2]
[311011869,1704868239895,-306.979227,0.000325,2]
[311011870,1704868239924,-6327.4465177,0.000325,2]
[311011871,1704868239936,-4245.84616659,0.000325,2]
[311011872,1704868239951,-774461.6142016,0.000325,2]
[311011873,1704868239963,-367917.36031955,0.000325,2]
[311011874,1704868239974,-392.67000004,0.000325,2]
[311011875,1704868240451,650.75415232,0.00022501,2]
[311011876,1704868240553,-284.38306416,0.00028028,2]
[311011877,1704868240577,-1077.23493584,0.00028028,2]
[311011878,1704868240586,-526.0,0.00028028,2]
[311011879,1704868240595,-30.88437633,0.0003,2]
[311011880,1704868240607,-125.11562367,0.0003,2]
[311011881,1704868240616,-647.46867665,0.000325,2]
[311011882,1704868240627,-2903.39829835,0.000325,2]
[311011883,1704868240646,-86576.30407182,0.000325,2]
[311011884,1704868240656,-150.0,0.00032533,2]
[311011885,1704868240665,-357.57031,0.0003255,2]
[311011886,1704868240676,-745.825,0.00032568,2]
[311011887,1704868240684,-318.0,0.00032568,2]
[311011888,1704868240693,-155.59620802,0.000326,4]
[311011889,1704868240702,-200.0,0.00032612,3]
[311011890,1704868240712,-800.0,0.00032612,5]
[311011891,1704868240721,-200.0,0.00032613,3]
[311011892,1704868240730,-800.0,0.00032613,5]
[311011893,1704868240740,-1044.3058501,0.00032776,2]
[311011894,1704868240749,-150.0,0.00032817,2]
[311011895,1704868240758,-150.0,0.00032861,2]
[311011896,1704868240768,-250.0,0.00032872,2]
[311011897,1704868240777,-500.0,0.00032872,2]
[311011898,1704868240786,-500.0,0.00032872,2]
[311011899,1704868240795,-500.0,0.00032872,2]
[311011900,1704868240804,-500.0,0.00032872,2]
[311011901,1704868240813,-500.0,0.00032872,2]
[311011902,1704868240822,-500.0,0.00032872,2]
[311011903,1704868240831,-500.0,0.00032872,2]
[311011904,1704868240841,-500.0,0.00032872,2]
[311011905,1704868240850,-500.0,0.00032872,2]
[311011906,1704868240859,-500.0,0.00032872,2]
[311011907,1704868240868,-500.0,0.00032872,2]
[311011908,1704868240877,-500.0,0.00032872,2]
[311011909,1704868240887,-500.0,0.00032872,2]
[311011910,1704868240896,-500.0,0.00032872,2]
[311011911,1704868240905,-500.0,0.00032872,2]
[311011912,1704868240914,-500.0,0.00032872,2]
[311011913,1704868240925,-500.0,0.00032872,2]
[311011914,1704868240935,-500.0,0.00032872,2]
[311011915,1704868240944,-500.0,0.00032872,2]
[311011916,1704868240954,-500.0,0.00032872,2]
[311011917,1704868240964,-500.0,0.00032872,2]
[311011918,1704868240974,-500.0,0.00032872,2]
[311011919,1704868240983,-500.0,0.00032872,2]
[311011920,1704868240992,-500.0,0.00032872,2]
[311011921,1704868241001,-400.0,0.00032872,2]
[311011922,1704868241011,-500.0,0.00032872,2]
[311011923,1704868241022,-500.0,0.00032872,2]
[311011924,1704868241032,-500.0,0.00032872,2]
[311011925,1704868241041,-500.0,0.00032872,2]
[311011926,1704868241051,-500.0,0.00032872,2]
[311011927,1704868241061,-500.0,0.00032872,2]
[311011928,1704868241070,-500.0,0.00032872,2]
[311011929,1704868241080,-500.0,0.00032872,2]
[311011930,1704868241089,-500.0,0.00032872,2]
[311011931,1704868241100,-500.0,0.00032872,2]
[311011932,1704868241109,-500.0,0.00032872,2]
[311011933,1704868241119,-500.0,0.00032872,2]
[311011934,1704868241128,-500.0,0.00032872,2]
[311011935,1704868241137,-500.0,0.00032872,2]
[311011936,1704868241146,-500.0,0.00032872,2]
[311011937,1704868241156,-500.0,0.00032872,2]
[311011938,1704868241165,-500.0,0.00032872,2]
[311011939,1704868241175,-500.0,0.00032872,2]
[311011940,1704868241184,-500.0,0.00032872,2]
[311011941,1704868241194,-15045.39133705,0.00032872,2]
[311011942,1704868241203,-2907.71071733,0.00032872,4]
[311011943,1704868241212,-1372.42409869,0.00032872,2]
[311011944,1704868241222,-4617.12763814,0.00032873,4]
[311011945,1704868241231,-214.72509252,0.00032873,4]
[311011946,1704868241243,-383.84892023,0.00032873,4]
[311011947,1704868241253,-155.0,0.00032873,4]
[311011948,1704868241264,-155.0,0.00032873,4]
[311011949,1704868241273,-235.26160349,0.00032875,4]
[311011950,1704868241283,-400.0,0.00032875,2]
[311011951,1704868241292,-150.01,0.00032875,2]
[311011952,1704868241302,-3290.92677058,0.00032875,2]
[311011953,1704868241319,-19007.7685775,0.00032876,4]
[311011954,1704868241328,-858.801596,0.00032876,4]
[311011955,1704868241338,-598.77252319,0.00032876,2]
[311011956,1704868241347,-283.25543825,0.00032876,4]
[311011957,1704868241358,-155.0,0.00032876,4]
[311011958,1704868241367,-379.60409532,0.00032876,4]
[311011959,1704868241376,-2000.0,0.00032876,2]
[311011960,1704868241386,-200.0,0.00032876,2]
[311011961,1704868241395,-7989.876836,0.00032876,2]
[311011962,1704868241407,-433.62209111,0.00032876,2]
[311012007,1704868247500,-386.39411499,0.00028026,2]
[311012008,1704868247509,-474.06041571,0.00028027,2]
[311012009,1704868247519,-1257.463,0.00028028,2]
[311012010,1704868247528,-213.21889071,0.00032875,2]
[311012011,1704868247537,-491.01328826,0.00032875,2]
[311012012,1704868247546,-151.0,0.00032877,7]
[311012013,1704868247556,-151.0,0.00032877,7]
[311012014,1704868247565,-151.0,0.00032877,7]
[311012015,1704868247574,-151.0,0.00032877,7]
[311012016,1704868247583,-151.0,0.00032877,7]
[311012017,1704868247592,-151.0,0.00032877,7]
[311012018,1704868247602,-151.0,0.00032877,7]
[311012019,1704868247611,-151.0,0.00032877,7]
[311012020,1704868247621,-285.330935,0.00032877,7]
[311012021,1704868247630,-151.0,0.00032877,7]
[311012022,1704868247638,-546.36,0.00032877,15]
[311012023,1704868247647,-200.240242,0.00032877,7]
[311012024,1704868247657,-200.240242,0.00032877,7]
[311012025,1704868247666,-200.240242,0.00032877,7]
[311012026,1704868247675,-200.240242,0.00032877,7]
[311012027,1704868247684,-151.0,0.00032877,7]
[311012028,1704868247693,-151.0,0.00032877,7]
[311012029,1704868247702,-777.206077,0.00032877,7]
[311012030,1704868247712,-777.206077,0.00032877,7]
[311012031,1704868247721,-777.206077,0.00032877,7]
[311012032,1704868247730,-444.97450479,0.00032877,7]
[311012033,1704868247741,-332.23157221,0.00032877,7]
[311012034,1704868247751,-151.0,0.00032877,7]
[311012035,1704868247761,-151.0,0.00032877,7]
[311012036,1704868247770,-150.0,0.00032877,30]
[311012037,1704868247779,-200.240242,0.00032877,7]
[311012038,1704868247788,-200.240242,0.00032877,7]
[311012039,1704868247798,-151.0,0.00032877,7]
[311012040,1704868247807,-777.206077,0.00032877,7]
[311012041,1704868247816,-777.206077,0.00032877,7]
[311012042,1704868247825,-151.0,0.00032877,7]
[311012043,1704868247835,-1156.39263615,0.00032877,2]
[311012044,1704868292241,1932.752725,0.00037166,30]
[311012045,1704868298500,175092.99,0.00037166,30]
[311012046,1704868385837,150.0,0.00037166,30]
[311012047,1704868722399,578.45216865,0.0003715,30]
[311012048,1704868784205,1965.990009,0.00037158,30]
[311012049,1704869191964,1932.752725,0.00037158,30]
[311012050,1704869286683,150.0,0.00037158,30]
[311012070,1704869434732,-517.9614323,0.00024948,2]
[311012071,1704869434745,-348.62552588,0.00024948,2]
[311012072,1704869434755,-196.62103059,0.00024948,2]
[311012073,1704869434765,-527.38210729,0.00024949,2]
[311012074,1704869434775,-361.12598513,0.0002495,2]
[311012075,1704869434785,-1655.73359278,0.0002495,2]
[311012076,1704869434794,-79.63122356,0.0002495,2]
[311012077,1704869434814,-907.37292829,0.0002495,2]
[311012078,1704869434897,-171.61355998,0.00024948,2]
[311012079,1704869434906,-397.21856661,0.0002495,2]
[311012102,1704869438121,-9155.65646603,0.0002495,2]
[311012103,1704869438132,-202.94800345,0.00024951,2]
[311012104,1704869438143,-215.21809469,0.00024951,2]
[311012105,1704869438153,-155.0,0.00024951,2]
[311012106,1704869438163,-4696.4400105,0.00024951,2]
[311012107,1704869438173,-386.39411499,0.00024952,2]
[311012108,1704869438183,-523.09803935,0.00024953,2]
[311012109,1704869438193,-3039.7923389,0.00024953,2]
[311012110,1704869438203,-650.75415232,0.00024953,2]
[311012111,1704869438213,-284.94187757,0.00024953,2]
[311012112,1704869438223,-24308.12626099,0.00024953,2]
[311012113,1704869438233,-300.0,0.00024965,2]
[311012114,1704869438243,-350.0,0.00025,3]
[311012115,1704869438254,-1024.62,0.00025,2]
[311012116,1704869438264,-1016.9503095,0.00025,2]
[311012117,1704869438274,-289.88,0.00025279,2]
[311012118,1704869438284,-340.88708219,0.00025841,2]
[311012119,1704869438294,-340.88708216,0.00026091,2]
[311012120,1704869438303,-340.88708216,0.0002634,2]
[311012121,1704869438313,-340.88708216,0.0002659,2]
[311012122,1704869438323,-340.88708216,0.00026839,2]
[311012123,1704869438332,-1426.08,0.00026941,2]
[311012124,1704869438342,-500.0,0.00026945,2]
[311012125,1704869438352,-250.0,0.00026983,2]
[311012126,1704869438362,-400.0,0.00027,3]
[311012127,1704869438372,-251.73,0.00027011,2]
[311012128,1704869438383,-23880.0,0.00027021,2]
[311012129,1704869438393,-2206.26,0.00027026,2]
[311012130,1704869438402,-2705.0,0.00027026,2]
[311012131,1704869438412,-259.56,0.00027028,2]
[311012132,1704869438422,-2000.0,0.00027057,2]
[311012133,1704869438431,-209.11,0.00027068,2]
[311012134,1704869438441,-311.59,0.00027069,2]
[311012135,1704869438451,-340.88708216,0.00027089,2]
[311012136,1704869438460,-200.0,0.00027091,2]
[311012137,1704869438470,-8372.29,0.00027119,2]
[311012138,1704869438484,-150.0,0.00027146,2]
[311012139,1704869438493,-962.99,0.00027172,2]
[311012140,1704869438505,-555.75,0.00027197,2]
[311012141,1704869438515,-340.88708216,0.00027338,2]
[311012142,1704869438524,-250.0,0.00027397,2]
[311012143,1704869438534,-475.52,0.00027397,2]
[311012144,1704869439023,-289.88,0.00027543,2]
[311012145,1704869439033,-167.26,0.00027585,2]
[311012146,1704869439046,-340.88708216,0.00027588,2]
[311012147,1704869439055,-167.26,0.00027661,2]
[311012148,1704869439064,-167.26,0.00027736,2]
[311012149,1704869439073,-215.18,0.00027741,2]
[311012150,1704869439082,-316.8,0.00027776,2]
[311012151,1704869439091,-215.36,0.00027793,2]
[311012152,1704869439101,-167.26,0.00027812,2]
[311012153,1704869439110,-340.88708216,0.00027838,2]
[311012154,1704869439119,-167.26,0.00027888,2]
[311012155,1704869439129,-568.90691851,0.00027903,2]
[311012156,1704869439138,-316.8,0.00027922,2]
[311012157,1704869439147,-300.0,0.00027924,2]
[311012158,1704869439156,-167.26,0.00027963,2]
[311012159,1704869439166,-165.4,0.00027987,2]
[311012160,1704869439175,-4003.67854381,0.00028019,2]
[311012161,1704869439184,-714.09,0.00028026,2]
[311012162,1704869439194,-710.96,0.00028027,2]
[311012163,1704869439203,-157.05,0.00028032,2]
[311012164,1704869439213,-167.26,0.00028039,2]
[311012165,1704869439222,-4081.51,0.00028044,2]
[311012166,1704869439232,-311.59,0.00028047,2]
[311012167,1704869439241,-316.8,0.00028069,2]
[311012168,1704869439251,-206.96,0.0002808,2]
[311012169,1704869439262,-340.88708216,0.00028087,2]
[311012170,1704869439271,-167.26,0.00028115,2]
[311012171,1704869439280,-167.26,0.0002819,2]
[311012172,1704869439290,-4139.0,0.000282,2]
[311012173,1704869439299,-316.8,0.00028215,2]
[311012174,1704869439308,-167.26,0.00028266,2]
[311012175,1704869439318,-340.88708216,0.00028337,2]
[311012176,1704869439327,-167.26,0.00028342,2]
[311012177,1704869439338,-316.8,0.00028361,2]
[311012178,1704869439347,-167.26,0.00028417,2]
[311012179,1704869439357,-167.26,0.00028493,2]
[311012180,1704869439367,-316.8,0.00028507,2]
[311012181,1704869439376,-157.05,0.00028511,2]
[311012182,1704869439386,-167.26,0.00028569,2]
[311012183,1704869439395,-340.88708216,0.00028586,2]
[311012184,1704869439404,-167.26,0.00028644,2]
[311012185,1704869439413,-316.8,0.00028653,2]
[311012186,1704869439422,-167.26,0.0002872,2]
[311012187,1704869439432,-167.26,0.00028796,2]
[311012188,1704869439441,-316.8,0.000288,2]
[311012189,1704869439451,-340.88708216,0.00028836,2]
[311012190,1704869439460,-167.26,0.00028871,2]
[311012191,1704869439470,-316.8,0.00028946,2]
[311012192,1704869439478,-167.26,0.00028947,2]
[311012193,1704869439487,-157.05,0.00028991,2]
[311012194,1704869439496,-450.0,0.00029,3]
[311012195,1704869439506,-167.26,0.00029022,2]
[311012196,1704869439516,-311.59,0.00029025,2]
[311012197,1704869439525,-318.0,0.00029066,2]
[311012198,1704869439534,-150.0,0.00029066,2]
[311012199,1704869439543,-150.0,0.00029066,2]
[311012200,1704869439552,-2269.0,0.00029066,2]
[311012201,1704869439561,-150.0,0.00029066,2]
[311012202,1704869439570,-1028.0,0.00029066,2]
[311012203,1704869439588,-340.88708216,0.00029086,2]
[311012204,1704869439600,-316.8,0.00029092,2]
[311012205,1704869439610,-215.36,0.00029183,2]
[311012206,1704869439620,-316.8,0.00029238,2]
[311012207,1704869439630,-158.21076928,0.00029258,2]
[311012208,1704869439639,-340.88708216,0.00029335,2]
[311012209,1704869439649,-316.8,0.00029384,2]
[311012210,1704869439658,-157.05,0.0002947,2]
[311012211,1704869439668,-316.8,0.00029531,2]
[311012212,1704869439677,-55300.0,0.00029536,2]
[311012213,1704869439687,-340.88708216,0.00029585,2]
[311012214,1704869439697,-207.0,0.00029657,2]
[311012215,1704869439706,-316.8,0.00029677,2]
[311012216,1704869439715,-289.88,0.00029807,2]
[311012217,1704869439725,-316.8,0.00029823,2]
[311012218,1704869439735,-178.32346532,0.00029833,2]
[311012219,1704869439744,-340.88708216,0.00029834,2]
[311012220,1704869439754,-157.05,0.0002995,2]
[311012221,1704869439763,-316.8,0.00029969,2]
[311012222,1704869439773,-518629.96914574,0.0003,5]
[311012223,1704869439946,-2251.35002875,0.00024949,2]
[311012224,1704869439981,-40683.68317831,0.00024949,2]
[311012225,1704869439990,-72788.7970741,0.0003,5]
[311012226,1704869440000,-156.16627133,0.0003,2]
[311012227,1704869440013,-311.59,0.00030004,2]
[311012228,1704869440023,-155.0,0.00030034,2]
[311012229,1704869440032,-3640.50022538,0.00030035,4]
[311012230,1704869440041,-235.47466617,0.00030036,2]
[311012231,1704869440051,-361.34950035,0.00030036,2]
[311012232,1704869440061,-309.66099607,0.00030036,2]
[311012233,1704869440071,-340.88708216,0.00030084,2]
[311012234,1704869440080,-361.34950032,0.00030105,2]
[311012235,1704869440090,-316.8,0.00030115,2]
[311012236,1704869440099,-196.99593847,0.00030126,2]
[311012237,1704869440109,-27531.60801312,0.00030135,4]
[311012238,1704869440119,-500.0,0.00030136,2]
[311012239,1704869440129,-592.12898633,0.00030136,2]
[311012240,1704869440139,-500.0,0.00030136,2]
[311012241,1704869440149,-301.15627377,0.00030136,2]
[311012242,1704869440159,-500.0,0.00030136,2]
[311012243,1704869440169,-562.17852185,0.00030136,2]
[311012244,1704869440178,-503.70718187,0.00030136,2]
[311012245,1704869440188,-502.43889252,0.00030136,2]
[311012246,1704869440197,-560.67274826,0.00030136,2]
[311012247,1704869440207,-501.61400865,0.00030136,2]
[311012248,1704869440217,-500.0,0.00030136,2]
[311012249,1704869440227,-500.0,0.00030136,2]
[311012250,1704869440237,-500.0,0.00030136,2]
[311012251,1704869440247,-500.49141605,0.00030136,2]
[311012252,1704869440257,-501.65373524,0.00030136,2]
[311012253,1704869440267,-500.0,0.00030136,2]
[311012254,1704869440276,-617.09373414,0.00030136,2]
[311012255,1704869440286,-500.0,0.00030136,2]
[311012256,1704869440295,-500.0,0.00030136,2]
[311012257,1704869440305,-500.0,0.00030136,2]
[311012258,1704869440315,-500.99499719,0.00030136,2]
[311012259,1704869440325,-500.0,0.00030136,2]
[311012260,1704869440335,-500.69429081,0.00030136,2]
[311012261,1704869440345,-500.0,0.00030136,2]
[311012262,1704869440355,-500.0,0.00030136,2]
[311012263,1704869440365,-896.77,0.00030136,2]
[311012264,1704869440374,-617.53,0.00030136,2]
[311012265,1704869440384,-500.0,0.00030136,2]
[311012266,1704869440393,-500.0,0.00030136,2]
[311012267,1704869440403,-500.0,0.00030136,2]
[311012268,1704869440438,-505.67504228,0.00030136,2]
[311012269,1704869440448,-500.0,0.00030136,2]
[311012270,1704869440457,-850.57,0.00030136,2]
[311012271,1704869440466,-500.0,0.00030136,2]
[311012272,1704869440476,-504.51060762,0.00030136,2]
[311012273,1704869440485,-1238.07,0.00030136,2]
[311012274,1704869440494,-500.74861499,0.00030136,2]
[311012275,1704869440504,-500.0,0.00030136,2]
[311012276,1704869440514,-500.0,0.00030136,2]
[311012277,1704869440523,-887.84,0.00030136,2]
[311012278,1704869440533,-688.91,0.00030136,2]
[311012279,1704869440543,-500.0,0.00030136,2]
[311012280,1704869440553,-519.97306221,0.00030136,2]
[311012281,1704869440562,-500.0,0.00030136,2]
[311012282,1704869440572,-972.44,0.00030136,2]
[311012283,1704869440581,-500.0,0.00030136,2]
[311012284,1704869440591,-220.33865149,0.00030136,2]
[311012285,1704869440601,-507.98491404,0.00030136,2]
[311012286,1704869440610,-1000.0,0.00030136,2]
[311012287,1704869440619,-865.02,0.00030136,2]
[311012288,1704869440629,-500.0,0.00030136,2]
[311012289,1704869440638,-751.9,0.00030136,2]
[311012290,1704869440648,-500.0,0.00030136,2]
[311012291,1704869440657,-500.0,0.00030136,2]
[311012292,1704869440666,-520.80369354,0.00030136,2]
[311012293,1704869440675,-500.0,0.00030136,2]
[311012294,1704869440684,-500.0,0.00030136,2]
[311012295,1704869440694,-765.15,0.00030136,2]
[311012296,1704869440703,-500.0,0.00030136,2]
[311012297,1704869440713,-500.0,0.00030136,2]
[311012298,1704869440723,-746.89,0.00030136,2]
[311012299,1704869440732,-500.64938065,0.00030136,2]
[311012300,1704869440742,-805.37,0.00030136,2]
[311012301,1704869440751,-500.0,0.00030136,2]
[311012302,1704869440762,-500.0,0.00030136,2]
[311012303,1704869440771,-500.0,0.00030136,2]
[311012304,1704869440781,-500.0,0.00030136,2]
[311012305,1704869440790,-500.0,0.00030136,2]
[311012306,1704869440800,-1041.86,0.00030136,2]
[311012307,1704869440809,-500.0,0.00030136,2]
[311012308,1704869440818,-500.0,0.00030136,2]
[311012309,1704869440829,-598.54968544,0.00030136,2]
[311012310,1704869440841,-834.98,0.00030136,2]
[311012311,1704869440850,-888.65,0.00030136,2]
[311012312,1704869440859,-857.64,0.00030136,2]
[311012313,1704869440868,-590.62,0.00030136,2]
[311012314,1704869440878,-1490.21,0.00030136,2]
[311012315,1704869440887,-500.0,0.00030136,2]
[311012316,1704869440896,-1002.42556278,0.00030136,2]
[311012317,1704869440905,-984.7,0.00030136,2]
[311012318,1704869440916,-500.0,0.00030136,2]
[311012319,1704869440927,-500.0,0.00030136,2]
[311012320,1704869440937,-795.14,0.00030136,2]
[311012321,1704869440947,-163.72254972,0.00030136,2]
[311012322,1704869440957,-516.49,0.00030136,2]
[311012323,1704869440967,-500.0,0.00030136,2]
[311012324,1704869440977,-500.0,0.00030136,2]
[311012325,1704869440986,-564.77,0.00030136,2]
[311012326,1704869440995,-502.98884838,0.00030136,2]
[311012327,1704869441005,-500.0,0.00030136,2]
[311012328,1704869441015,-500.0,0.00030136,2]
[311012329,1704869441025,-500.0,0.00030136,2]
[311012330,1704869441034,-500.0,0.00030136,2]
[311012331,1704869441043,-500.0,0.00030136,2]
[311012332,1704869441052,-625.65,0.00030136,2]